[Event "*** SCC Grand Prix: Titled Tuesday Blitz"]
[Site "Chess.com"]
[Date "2020.09.08"]
[Round "10"]
[White "uthoang"]
[Black "romulocardoso"]
[Result "0-1"]
[WhiteElo "2215"]
[BlackElo "2067"]
[TimeControl "180+1"]
[EndTime "11:56:41 PDT"]
[Termination "romulocardoso won by resignation"]

1. d4 {[%clk 0:03:00.9]} 1... Nf6 {[%clk 0:02:59]} 2. Nf3 {[%clk 0:03:00.5]}
2... e6 {[%clk 0:02:59.6]} 3. g3 {[%clk 0:03:00.6]} 3... d5 {[%clk 0:03:00]} 4.
Bg2 {[%clk 0:03:00.9]} 4... b6 {[%clk 0:03:00.2]} 5. O-O {[%clk 0:03:01.8]} 5...
Bb7 {[%clk 0:03:00.5]} 6. b3 {[%clk 0:03:02.5]} 6... Bd6 {[%clk 0:03:00.9]} 7.
Bb2 {[%clk 0:03:03.4]} 7... O-O {[%clk 0:03:01.2]} 8. Nbd2 {[%clk 0:03:03.9]}
8... Nbd7 {[%clk 0:03:01.7]} 9. e3 {[%clk 0:03:03.6]} 9... Rc8 {[%clk
0:03:01.9]} 10. Rc1 {[%clk 0:03:03.3]} 10... c5 {[%clk 0:03:02.2]} 11. c4 {[%clk
0:03:03.6]} 11... Ne4 {[%clk 0:03:02.1]} 12. Nxe4 {[%clk 0:03:01.8]} 12... dxe4
{[%clk 0:03:03]} 13. Nd2 {[%clk 0:03:01.5]} 13... f5 {[%clk 0:03:02.6]} 14. f3
{[%clk 0:02:53.8]} 14... exf3 {[%clk 0:03:03.5]} 15. Bxf3 {[%clk 0:02:52.7]}
15... Bxf3 {[%clk 0:03:03]} 16. Qxf3 {[%clk 0:02:53.4]} 16... Nf6 {[%clk
0:03:03.4]} 17. d5 {[%clk 0:02:47.4]} 17... exd5 {[%clk 0:02:58.1]} 18. cxd5
{[%clk 0:02:46.6]} 18... Ng4 {[%clk 0:02:54.8]} 19. Nc4 {[%clk 0:02:36.9]} 19...
Bb8 {[%clk 0:02:35.4]} 20. h3 {[%clk 0:02:29.4]} 20... Nh6 {[%clk 0:02:33.5]}
21. Kg2 {[%clk 0:02:24.2]} 21... b5 {[%clk 0:02:33.2]} 22. Ne5 {[%clk
0:02:23.9]} 22... Qd6 {[%clk 0:02:19.8]} 23. Nc6 {[%clk 0:02:05.8]} 23... Rce8
{[%clk 0:02:03.3]} 24. Nxb8 {[%clk 0:02:00.1]} 24... Qxb8 {[%clk 0:02:04.2]} 25.
Rxc5 {[%clk 0:01:56.2]} 25... Qb6 {[%clk 0:02:04.2]} 26. Bd4 {[%clk 0:01:55.5]}
26... Nf7 {[%clk 0:01:56.9]} 27. Rc6 {[%clk 0:01:42.9]} 27... Qa5 {[%clk
0:01:47.5]} 28. Re6 {[%clk 0:01:33.8]} 28... Ng5 {[%clk 0:01:45.1]} 29. Qe2
{[%clk 0:01:16.3]} 29... Nxe6 {[%clk 0:01:43.9]} 30. dxe6 {[%clk 0:01:16]} 30...
Rxe6 {[%clk 0:01:44.2]} 31. Qd3 {[%clk 0:01:11.4]} 31... Qxa2+ {[%clk
0:01:43.4]} 32. Rf2 {[%clk 0:01:11.2]} 32... Qa6 {[%clk 0:01:39]} 33. Rxf5
{[%clk 0:01:03.3]} 33... Qa2+ {[%clk 0:01:15.8]} 34. Kf3 {[%clk 0:01:02.8]}
34... Rxf5+ {[%clk 0:01:00]} 35. Qxf5 {[%clk 0:01:03.7]} 35... Qxb3 {[%clk
0:01:00.2]} 36. Qg5 {[%clk 0:00:42.3]} 36... Qd1+ {[%clk 0:00:58.8]} 37. Kg2
{[%clk 0:00:41.5]} 37... Qe2+ {[%clk 0:00:58.3]} 38. Kg1 {[%clk 0:00:40.6]}
38... Qd1+ {[%clk 0:00:50.1]} 39. Kg2 {[%clk 0:00:40.7]} 39... Qc2+ {[%clk
0:00:49.9]} 40. Kg1 {[%clk 0:00:39.9]} 40... Qg6 {[%clk 0:00:42.7]} 41. Qd8+
{[%clk 0:00:39.4]} 41... Re8 {[%clk 0:00:42.3]} 42. Qd5+ {[%clk 0:00:35]} 42...
Kh8 {[%clk 0:00:42]} 43. Kg2 {[%clk 0:00:33.6]} 43... Qe4+ {[%clk 0:00:41.2]}
44. Qxe4 {[%clk 0:00:33.3]} 44... Rxe4 {[%clk 0:00:42.1]} 45. Kf3 {[%clk
0:00:34.1]} 45... Re7 {[%clk 0:00:35.2]} 46. Bc5 {[%clk 0:00:33.8]} 46... Rc7
{[%clk 0:00:33.6]} 47. Bd6 {[%clk 0:00:33.2]} 47... Rc6 {[%clk 0:00:33.6]} 48.
Bb4 {[%clk 0:00:32.9]} 48... Rc4 {[%clk 0:00:32.8]} 49. Ba5 {[%clk 0:00:32.8]}
49... Ra4 {[%clk 0:00:31.8]} 50. Bc7 {[%clk 0:00:32.3]} 50... b4 {[%clk
0:00:31.5]} 51. Ke2 {[%clk 0:00:30.1]} 51... a5 {[%clk 0:00:31.2]} 52. Be5
{[%clk 0:00:31]} 52... Ra2+ {[%clk 0:00:30.7]} 53. Kd3 {[%clk 0:00:31.4]} 53...
b3 {[%clk 0:00:30.7]} 54. Bd4 {[%clk 0:00:26.5]} 0-1

[Event "*** SCC Grand Prix: Titled Tuesday Blitz"]
[Site "Chess.com"]
[Date "2020.09.08"]
[Round "10"]
[White "hellokostya"]
[Black "Sethu0025"]
[Result "1/2-1/2"]
[WhiteElo "2514"]
[BlackElo "2699"]
[TimeControl "180+1"]
[EndTime "11:56:42 PDT"]
[Termination "Game drawn by repetition"]

1. d4 {[%clk 0:03:00.9]} 1... d5 {[%clk 0:02:58.6]} 2. c4 {[%clk 0:03:00.5]}
2... e6 {[%clk 0:02:59.3]} 3. Nf3 {[%clk 0:02:59.5]} 3... Nf6 {[%clk 0:02:59]}
4. Nc3 {[%clk 0:02:59.4]} 4... c6 {[%clk 0:02:59.6]} 5. e3 {[%clk 0:02:56.8]}
5... Nbd7 {[%clk 0:02:58.9]} 6. b3 {[%clk 0:02:55.6]} 6... Bd6 {[%clk 0:02:56]}
7. Bd3 {[%clk 0:02:54]} 7... O-O {[%clk 0:02:56.3]} 8. Bb2 {[%clk 0:02:53.6]}
8... b6 {[%clk 0:02:56.5]} 9. Qc2 {[%clk 0:02:53.3]} 9... Bb7 {[%clk 0:02:56.9]}
10. O-O {[%clk 0:02:53.2]} 10... Qe7 {[%clk 0:02:54.4]} 11. Rad1 {[%clk
0:02:40.3]} 11... Rac8 {[%clk 0:02:54.2]} 12. e4 {[%clk 0:02:40.2]} 12... dxe4
{[%clk 0:02:53.6]} 13. Nxe4 {[%clk 0:02:40]} 13... Nxe4 {[%clk 0:02:54.3]} 14.
Bxe4 {[%clk 0:02:39.4]} 14... f5 {[%clk 0:02:54.8]} 15. Bd3 {[%clk 0:02:37.4]}
15... c5 {[%clk 0:02:55.4]} 16. d5 {[%clk 0:02:30.2]} 16... exd5 {[%clk
0:02:42.2]} 17. cxd5 {[%clk 0:02:07.7]} 17... Qf7 {[%clk 0:02:33]} 18. Ng5
{[%clk 0:01:48.3]} 18... Qg6 {[%clk 0:02:31.2]} 19. f4 {[%clk 0:01:42.7]} 19...
h6 {[%clk 0:02:07.3]} 20. Ne6 {[%clk 0:01:39.3]} 20... Rf7 {[%clk 0:02:07.7]}
21. Bc4 {[%clk 0:01:33.6]} 21... Nf6 {[%clk 0:02:07.6]} 22. h3 {[%clk
0:01:20.1]} 22... Ne4 {[%clk 0:02:05.4]} 23. Qd3 {[%clk 0:01:09.1]} 23... Re8
{[%clk 0:01:53.7]} 24. Kh2 {[%clk 0:01:02]} 24... Rfe7 {[%clk 0:01:45.9]} 25.
Rde1 {[%clk 0:00:57.2]} 25... a6 {[%clk 0:01:08.9]} 26. a4 {[%clk 0:00:56.9]}
26... h5 {[%clk 0:00:53.5]} 27. Kg1 {[%clk 0:00:50.2]} 27... h4 {[%clk
0:00:50.7]} 28. Ng5 {[%clk 0:00:44.2]} 28... Nxg5 {[%clk 0:00:40.7]} 29. Rxe7
{[%clk 0:00:45.1]} 29... Rxe7 {[%clk 0:00:36.2]} 30. fxg5 {[%clk 0:00:45]} 30...
Qxg5 {[%clk 0:00:36.8]} 31. Rxf5 {[%clk 0:00:31.6]} 31... Re1+ {[%clk
0:00:28.2]} 32. Rf1 {[%clk 0:00:31.5]} 32... Re3 {[%clk 0:00:23.3]} 33. Qf5
{[%clk 0:00:26.2]} 33... Qxf5 {[%clk 0:00:22.6]} 34. Rxf5 {[%clk 0:00:27.1]}
34... Re1+ {[%clk 0:00:22.6]} 35. Rf1 {[%clk 0:00:26.8]} 35... Re4 {[%clk
0:00:17.7]} 36. Rd1 {[%clk 0:00:22.1]} 36... Re3 {[%clk 0:00:16.9]} 37. Kf2
{[%clk 0:00:21.5]} 37... Re7 {[%clk 0:00:14.6]} 38. Kf3 {[%clk 0:00:20.8]} 38...
Bc8 {[%clk 0:00:12.5]} 39. Bc3 {[%clk 0:00:18.1]} 39... Rf7+ {[%clk 0:00:12.7]}
40. Ke2 {[%clk 0:00:17.7]} 40... Re7+ {[%clk 0:00:11.1]} 41. Kf3 {[%clk
0:00:17.9]} 41... Rf7+ {[%clk 0:00:09.3]} 42. Ke2 {[%clk 0:00:18.1]} 42... Re7+
{[%clk 0:00:08.6]} 43. Kf3 {[%clk 0:00:18.2]} 1/2-1/2

[Event "*** SCC Grand Prix: Titled Tuesday Blitz"]
[Site "Chess.com"]
[Date "2020.09.08"]
[Round "10"]
[White "Gorin_Leonid"]
[Black "Zavgorodniy_Serg"]
[Result "1-0"]
[WhiteElo "2646"]
[BlackElo "2779"]
[TimeControl "180+1"]
[EndTime "11:56:43 PDT"]
[Termination "Gorin_Leonid won by resignation"]

1. e4 {[%clk 0:03:00.9]} 1... e5 {[%clk 0:02:59.5]} 2. Nf3 {[%clk 0:03:00.8]}
2... d6 {[%clk 0:02:59.6]} 3. d4 {[%clk 0:02:59.7]} 3... exd4 {[%clk 0:03:00.5]}
4. Nxd4 {[%clk 0:02:59.2]} 4... Nf6 {[%clk 0:03:00.7]} 5. f3 {[%clk 0:02:59.4]}
5... Be7 {[%clk 0:02:57.9]} 6. c4 {[%clk 0:02:59.2]} 6... O-O {[%clk 0:02:58]}
7. Nc3 {[%clk 0:02:59.8]} 7... c6 {[%clk 0:02:57.3]} 8. Be3 {[%clk 0:02:59]}
8... a6 {[%clk 0:02:50.5]} 9. Be2 {[%clk 0:02:56.8]} 9... b5 {[%clk 0:02:46.6]}
10. O-O {[%clk 0:02:52.9]} 10... Re8 {[%clk 0:02:45.4]} 11. Qd2 {[%clk
0:02:42.4]} 11... Bf8 {[%clk 0:02:41.6]} 12. a3 {[%clk 0:02:39.6]} 12... Bb7
{[%clk 0:02:31.4]} 13. Rfd1 {[%clk 0:02:33.3]} 13... Nbd7 {[%clk 0:02:30.1]} 14.
Rac1 {[%clk 0:02:25.8]} 14... g6 {[%clk 0:02:23.7]} 15. Bh6 {[%clk 0:02:16.2]}
15... Be7 {[%clk 0:02:19.8]} 16. Bf1 {[%clk 0:02:12]} 16... Qb6 {[%clk
0:02:10.4]} 17. Be3 {[%clk 0:02:09.3]} 17... Qd8 {[%clk 0:02:02.6]} 18. Kh1
{[%clk 0:02:06.3]} 18... Bf8 {[%clk 0:01:59.7]} 19. Bh6 {[%clk 0:02:04.9]} 19...
Bxh6 {[%clk 0:01:58.6]} 20. Qxh6 {[%clk 0:02:03.9]} 20... Qe7 {[%clk 0:01:58.9]}
21. Qd2 {[%clk 0:02:02.4]} 21... Rad8 {[%clk 0:01:57.4]} 22. Qf2 {[%clk
0:01:50.9]} 22... h5 {[%clk 0:01:54.3]} 23. Nb3 {[%clk 0:01:44.7]} 23... Ne5
{[%clk 0:01:53]} 24. Na5 {[%clk 0:01:41.8]} 24... Ba8 {[%clk 0:01:52.6]} 25. b4
{[%clk 0:01:37.8]} 25... g5 {[%clk 0:01:11.1]} 26. Ne2 {[%clk 0:01:25]} 26... c5
{[%clk 0:00:58.5]} 27. Ng3 {[%clk 0:01:19.8]} 27... Qe6 {[%clk 0:00:50.6]} 28.
cxb5 {[%clk 0:01:17.5]} 28... g4 {[%clk 0:00:40.8]} 29. b6 {[%clk 0:01:07.6]}
29... gxf3 {[%clk 0:00:33.8]} 30. gxf3 {[%clk 0:01:07.1]} 30... h4 {[%clk
0:00:19.2]} 31. b7 {[%clk 0:00:57.5]} 31... hxg3 {[%clk 0:00:16.2]} 32. Qxg3+
{[%clk 0:00:56.5]} 32... Kf8 {[%clk 0:00:16.6]} 33. bxa8=Q {[%clk 0:00:55.1]}
33... Rxa8 {[%clk 0:00:17.5]} 34. Nb7 {[%clk 0:00:50.5]} 34... Nh5 {[%clk
0:00:11.2]} 35. Qg5 {[%clk 0:00:39.4]} 35... Ng7 {[%clk 0:00:04.9]} 36. Nxd6
{[%clk 0:00:31.1]} 36... Nxf3 {[%clk 0:00:04.5]} 37. Qf4 {[%clk 0:00:28]} 37...
Nd4 {[%clk 0:00:04.4]} 38. Nxe8 {[%clk 0:00:24.9]} 38... Rxe8 {[%clk 0:00:05.3]}
39. bxc5 {[%clk 0:00:24.7]} 39... Nh5 {[%clk 0:00:05.6]} 40. Qd6+ {[%clk
0:00:23.1]} 40... Qxd6 {[%clk 0:00:05.1]} 41. cxd6 {[%clk 0:00:23.2]} 1-0

[Event "*** SCC Grand Prix: Titled Tuesday Blitz"]
[Site "Chess.com"]
[Date "2020.09.08"]
[Round "10"]
[White "arminmusovic"]
[Black "MF1966Idrisov"]
[Result "1-0"]
[WhiteElo "2560"]
[BlackElo "2396"]
[TimeControl "180+1"]
[EndTime "11:56:45 PDT"]
[Termination "arminmusovic won on time"]

1. a3 {[%clk 0:03:00.9]} 1... e5 {[%clk 0:02:58.8]} 2. Nc3 {[%clk 0:03:01.8]}
2... d5 {[%clk 0:02:58.2]} 3. d4 {[%clk 0:03:02]} 3... e4 {[%clk 0:02:57.9]} 4.
Bf4 {[%clk 0:03:01.8]} 4... c6 {[%clk 0:02:52.4]} 5. e3 {[%clk 0:03:00.7]} 5...
Bd6 {[%clk 0:02:51.3]} 6. Nge2 {[%clk 0:03:01]} 6... Nf6 {[%clk 0:02:50.5]} 7.
Bxd6 {[%clk 0:02:59.8]} 7... Qxd6 {[%clk 0:02:50]} 8. Nf4 {[%clk 0:03:00.7]}
8... O-O {[%clk 0:02:49.9]} 9. Be2 {[%clk 0:03:00.6]} 9... Re8 {[%clk
0:02:49.3]} 10. g4 {[%clk 0:03:00.3]} 10... Nfd7 {[%clk 0:02:41.3]} 11. h4
{[%clk 0:02:58.5]} 11... Nf8 {[%clk 0:02:41.1]} 12. Qd2 {[%clk 0:02:55.7]} 12...
b5 {[%clk 0:02:40.4]} 13. O-O-O {[%clk 0:02:55.1]} 13... a5 {[%clk 0:02:40.4]}
14. Rdg1 {[%clk 0:02:55.7]} 14... b4 {[%clk 0:02:40.1]} 15. Nb1 {[%clk
0:02:56.3]} 15... bxa3 {[%clk 0:02:40]} 16. Nxa3 {[%clk 0:02:56.4]} 16... Be6
{[%clk 0:02:12.6]} 17. g5 {[%clk 0:02:55.6]} 17... c5 {[%clk 0:02:11.9]} 18. h5
{[%clk 0:02:49.7]} 18... c4 {[%clk 0:02:11.5]} 19. g6 {[%clk 0:02:42]} 19...
fxg6 {[%clk 0:02:10]} 20. Bg4 {[%clk 0:02:36.1]} 20... Bxg4 {[%clk 0:01:53]} 21.
Rxg4 {[%clk 0:02:37]} 21... Qc6 {[%clk 0:01:34.2]} 22. hxg6 {[%clk 0:02:24]}
22... h6 {[%clk 0:01:33.2]} 23. Rh5 {[%clk 0:02:24.1]} 23... Rd8 {[%clk
0:01:29.1]} 24. Qc3 {[%clk 0:02:10.5]} 24... Ra7 {[%clk 0:01:24]} 25. Re5 {[%clk
0:01:58.4]} 25... Qd7 {[%clk 0:00:57]} 26. Rg1 {[%clk 0:01:36.9]} 26... Qb7
{[%clk 0:00:56.5]} 27. Ne6 {[%clk 0:01:14.7]} 27... Nxe6 {[%clk 0:00:51.6]} 28.
Rxe6 {[%clk 0:01:15.6]} 28... Qd7 {[%clk 0:00:44.9]} 29. Rb6 {[%clk 0:01:07.7]}
29... Nc6 {[%clk 0:00:42.7]} 30. Nxc4 {[%clk 0:01:05.8]} 30... Nb4 {[%clk
0:00:38.8]} 31. Ne5 {[%clk 0:00:53.7]} 31... Qa4 {[%clk 0:00:31]} 32. Kd2 {[%clk
0:00:36.2]} 32... Re7 {[%clk 0:00:16]} 33. Qc5 {[%clk 0:00:29]} 33... Ree8
{[%clk 0:00:12.7]} 34. Nc6 {[%clk 0:00:23.8]} 34... Rc8 {[%clk 0:00:11.4]} 35.
Ne7+ {[%clk 0:00:20.9]} 35... Kh8 {[%clk 0:00:09.6]} 36. Nxc8 {[%clk 0:00:21.2]}
36... Nxc2 {[%clk 0:00:04.8]} 37. Nd6 {[%clk 0:00:18.2]} 37... Nxe3 {[%clk
0:00:01.2]} 38. fxe3 {[%clk 0:00:13.3]} 1-0

[Event "*** SCC Grand Prix: Titled Tuesday Blitz"]
[Site "Chess.com"]
[Date "2020.09.08"]
[Round "10"]
[White "Deepweb2020"]
[Black "Supernotar"]
[Result "0-1"]
[WhiteElo "2199"]
[BlackElo "2783"]
[TimeControl "180+1"]
[EndTime "11:56:45 PDT"]
[Termination "Supernotar won by resignation"]

1. d4 {[%clk 0:02:45.7]} 1... d5 {[%clk 0:02:59.4]} 2. c4 {[%clk 0:02:43.3]}
2... dxc4 {[%clk 0:02:59.2]} 3. e3 {[%clk 0:02:43.4]} 3... Nf6 {[%clk
0:02:58.9]} 4. Bxc4 {[%clk 0:02:42.8]} 4... e6 {[%clk 0:02:58.8]} 5. Nf3 {[%clk
0:02:42.6]} 5... a6 {[%clk 0:02:58.2]} 6. O-O {[%clk 0:02:41.9]} 6... c5 {[%clk
0:02:58.2]} 7. dxc5 {[%clk 0:02:41.6]} 7... Bxc5 {[%clk 0:02:55.3]} 8. a3 {[%clk
0:02:41.8]} 8... O-O {[%clk 0:02:52.9]} 9. b4 {[%clk 0:02:42.1]} 9... Be7 {[%clk
0:02:52.4]} 10. Bb2 {[%clk 0:02:42.3]} 10... b5 {[%clk 0:02:52.1]} 11. Bb3
{[%clk 0:02:40.3]} 11... Bb7 {[%clk 0:02:51.8]} 12. Nbd2 {[%clk 0:02:40.6]}
12... Nc6 {[%clk 0:02:51.3]} 13. Qe2 {[%clk 0:02:40.1]} 13... Qb6 {[%clk
0:02:47.9]} 14. Rfd1 {[%clk 0:02:38.5]} 14... a5 {[%clk 0:02:46.9]} 15. bxa5
{[%clk 0:02:35.6]} 15... Rxa5 {[%clk 0:02:46.7]} 16. a4 {[%clk 0:02:34.7]} 16...
bxa4 {[%clk 0:02:42.9]} 17. Nc4 {[%clk 0:02:25.3]} 17... Qxb3 {[%clk 0:02:42.2]}
18. Nxa5 {[%clk 0:02:24.5]} 18... Nxa5 {[%clk 0:02:41.8]} 19. Rdb1 {[%clk
0:02:22.2]} 19... Bxf3 {[%clk 0:02:15.6]} 20. Qxf3 {[%clk 0:02:19.1]} 20... Qc4
{[%clk 0:02:14.6]} 21. Qf4 {[%clk 0:02:09]} 21... Qxf4 {[%clk 0:02:02.4]} 22.
exf4 {[%clk 0:02:09.6]} 22... Nc4 {[%clk 0:01:58.6]} 23. Rxa4 {[%clk 0:02:07.1]}
23... Nxb2 {[%clk 0:01:56.4]} 24. Rxb2 {[%clk 0:02:05]} 24... g6 {[%clk
0:01:56.3]} 25. Ra7 {[%clk 0:02:03.3]} 25... Nd5 {[%clk 0:01:55.8]} 26. Rab7
{[%clk 0:01:53]} 26... Bf6 {[%clk 0:01:51.2]} 27. Rb1 {[%clk 0:01:43.8]} 27...
Nxf4 {[%clk 0:01:50.7]} 28. Rb8 {[%clk 0:01:42.8]} 28... Rxb8 {[%clk 0:01:48.2]}
29. Rxb8+ {[%clk 0:01:43.7]} 29... Kg7 {[%clk 0:01:48.5]} 30. g3 {[%clk
0:01:43.8]} 30... Nd5 {[%clk 0:01:47.7]} 31. Kg2 {[%clk 0:01:43.9]} 31... h5
{[%clk 0:01:47.3]} 32. h3 {[%clk 0:01:43]} 32... h4 {[%clk 0:01:44.2]} 33. g4
{[%clk 0:01:39]} 33... Nf4+ {[%clk 0:01:42.4]} 34. Kh2 {[%clk 0:01:36.8]} 34...
Be5 {[%clk 0:01:42]} 35. Ra8 {[%clk 0:01:36.7]} 35... Nd3+ {[%clk 0:01:36]} 36.
Kg2 {[%clk 0:01:35.5]} 36... Bd4 {[%clk 0:01:35.1]} 37. Rd8 {[%clk 0:01:16.5]}
37... e5 {[%clk 0:01:21.2]} 38. f3 {[%clk 0:01:07.4]} 38... Ne1+ {[%clk
0:01:19.4]} 39. Kh1 {[%clk 0:00:59.9]} 39... Nxf3 {[%clk 0:01:18.7]} 40. Ra8
{[%clk 0:00:59.2]} 40... Ng5 {[%clk 0:01:17]} 41. Ra3 {[%clk 0:00:57.3]} 41...
f5 {[%clk 0:01:13.5]} 42. gxf5 {[%clk 0:00:55.1]} 42... gxf5 {[%clk 0:01:13]}
43. Kg2 {[%clk 0:00:55.5]} 43... Kf6 {[%clk 0:01:12]} 44. Ra6+ {[%clk
0:00:48.4]} 44... Ne6 {[%clk 0:01:11.7]} 45. Ra8 {[%clk 0:00:48]} 45... e4
{[%clk 0:01:08.8]} 46. Rh8 {[%clk 0:00:47.5]} 46... Kg5 {[%clk 0:01:06.9]} 47.
Rg8+ {[%clk 0:00:47.2]} 47... Kf6 {[%clk 0:01:06.1]} 48. Rh8 {[%clk 0:00:47.1]}
48... Nf4+ {[%clk 0:01:06]} 49. Kh2 {[%clk 0:00:46.7]} 49... Kg5 {[%clk
0:01:05.9]} 50. Rg8+ {[%clk 0:00:44.1]} 50... Ng6 {[%clk 0:01:05.6]} 51. Re8
{[%clk 0:00:43.3]} 51... Be5+ {[%clk 0:01:04]} 52. Kg2 {[%clk 0:00:43.5]} 52...
f4 {[%clk 0:01:03.2]} 53. Kh1 {[%clk 0:00:41.1]} 53... f3 {[%clk 0:01:02.7]} 54.
Ra8 {[%clk 0:00:40]} 54... e3 {[%clk 0:01:01.1]} 55. Ra4 {[%clk 0:00:39.6]}
55... e2 {[%clk 0:00:55.7]} 56. Re4 {[%clk 0:00:38.7]} 56... Kf5 {[%clk
0:00:55]} 57. Rxe2 {[%clk 0:00:34.1]} 57... fxe2 {[%clk 0:00:54.5]} 0-1

[Event "*** SCC Grand Prix: Titled Tuesday Blitz"]
[Site "Chess.com"]
[Date "2020.09.08"]
[Round "10"]
[White "Fandorine"]
[Black "GasconJR"]
[Result "1-0"]
[WhiteElo "2915"]
[BlackElo "2610"]
[TimeControl "180+1"]
[EndTime "11:56:46 PDT"]
[Termination "Fandorine won on time"]

1. e4 {[%clk 0:03:00.5]} 1... c5 {[%clk 0:02:59.6]} 2. Nf3 {[%clk 0:02:59.8]}
2... d6 {[%clk 0:02:59.4]} 3. c3 {[%clk 0:02:59.6]} 3... Nf6 {[%clk 0:02:59]} 4.
g3 {[%clk 0:02:59.7]} 4... g6 {[%clk 0:02:55]} 5. Bg2 {[%clk 0:02:59.8]} 5...
Bg7 {[%clk 0:02:55.7]} 6. O-O {[%clk 0:03:00.4]} 6... O-O {[%clk 0:02:55.9]} 7.
Re1 {[%clk 0:03:00.8]} 7... Nc6 {[%clk 0:02:49.2]} 8. d3 {[%clk 0:03:00.8]} 8...
Bg4 {[%clk 0:02:47.7]} 9. Nbd2 {[%clk 0:02:54.8]} 9... Rb8 {[%clk 0:02:46.7]}
10. h3 {[%clk 0:02:54.8]} 10... Bxf3 {[%clk 0:02:45.1]} 11. Nxf3 {[%clk
0:02:55.7]} 11... Nd7 {[%clk 0:02:32.3]} 12. Be3 {[%clk 0:02:50.8]} 12... b5
{[%clk 0:02:31.1]} 13. a3 {[%clk 0:02:51.1]} 13... a5 {[%clk 0:02:28.7]} 14. h4
{[%clk 0:02:50.8]} 14... b4 {[%clk 0:02:27.7]} 15. axb4 {[%clk 0:02:51.6]} 15...
axb4 {[%clk 0:02:27.2]} 16. d4 {[%clk 0:02:52.1]} 16... bxc3 {[%clk 0:02:08]}
17. bxc3 {[%clk 0:02:53]} 17... Na5 {[%clk 0:01:56.2]} 18. h5 {[%clk 0:02:48.6]}
18... Nc4 {[%clk 0:01:54.3]} 19. Bc1 {[%clk 0:02:45]} 19... e6 {[%clk
0:01:37.2]} 20. Bf1 {[%clk 0:02:35.6]} 20... d5 {[%clk 0:01:34.5]} 21. e5 {[%clk
0:02:31.8]} 21... Qb6 {[%clk 0:01:10.8]} 22. h6 {[%clk 0:02:12.9]} 22... Bh8
{[%clk 0:01:09.7]} 23. Bxc4 {[%clk 0:01:34.8]} 23... dxc4 {[%clk 0:01:08.5]} 24.
d5 {[%clk 0:01:34.5]} 24... exd5 {[%clk 0:00:44]} 25. Qxd5 {[%clk 0:01:35.4]}
25... Qe6 {[%clk 0:00:43.6]} 26. Qxe6 {[%clk 0:01:20.9]} 26... fxe6 {[%clk
0:00:42.6]} 27. Bf4 {[%clk 0:01:21.4]} 27... Nb6 {[%clk 0:00:31.7]} 28. Ng5
{[%clk 0:01:21.1]} 28... Rfe8 {[%clk 0:00:19]} 29. Ra6 {[%clk 0:01:19]} 29...
Nd5 {[%clk 0:00:19]} 30. Rc1 {[%clk 0:01:11.4]} 30... Rb6 {[%clk 0:00:16.5]} 31.
Rxb6 {[%clk 0:01:06.4]} 31... Nxb6 {[%clk 0:00:17.4]} 32. Ne4 {[%clk 0:01:06.5]}
32... Nd5 {[%clk 0:00:09.1]} 33. Ra1 {[%clk 0:00:56.3]} 33... Rf8 {[%clk
0:00:08.5]} 34. Ra7 {[%clk 0:00:32.5]} 34... Nxf4 {[%clk 0:00:08.3]} 35. gxf4
{[%clk 0:00:33.4]} 35... Rxf4 {[%clk 0:00:08.5]} 36. Ra8+ {[%clk 0:00:33.8]}
36... Rf8 {[%clk 0:00:08.5]} 37. Rxf8+ {[%clk 0:00:34.1]} 37... Kxf8 {[%clk
0:00:09.4]} 38. f4 {[%clk 0:00:34.6]} 38... Kf7 {[%clk 0:00:07.7]} 39. Ng5+
{[%clk 0:00:33.7]} 39... Ke7 {[%clk 0:00:07.4]} 40. Kf2 {[%clk 0:00:34.2]} 40...
Kd7 {[%clk 0:00:05.4]} 41. Ke3 {[%clk 0:00:28.5]} 41... Ke7 {[%clk 0:00:04.2]}
42. Kd2 {[%clk 0:00:28.3]} 42... Kd7 {[%clk 0:00:04.5]} 43. Kc2 {[%clk
0:00:28.3]} 43... Kc6 {[%clk 0:00:04.9]} 44. Nf7 {[%clk 0:00:26.8]} 1-0

[Event "*** SCC Grand Prix: Titled Tuesday Blitz"]
[Site "Chess.com"]
[Date "2020.09.08"]
[Round "10"]
[White "Kotofeyca"]
[Black "politeplayer"]
[Result "0-1"]
[WhiteElo "2337"]
[BlackElo "2268"]
[TimeControl "180+1"]
[EndTime "11:56:49 PDT"]
[Termination "politeplayer won by checkmate"]

1. d4 {[%clk 0:03:00.9]} 1... d5 {[%clk 0:02:55.2]} 2. c4 {[%clk 0:03:00.9]}
2... e6 {[%clk 0:02:54.7]} 3. Nc3 {[%clk 0:03:01.5]} 3... c5 {[%clk 0:02:54.7]}
4. cxd5 {[%clk 0:03:00.7]} 4... cxd4 {[%clk 0:02:55]} 5. Qxd4 {[%clk 0:02:59.8]}
5... Nc6 {[%clk 0:02:54.2]} 6. Qa4 {[%clk 0:02:59.7]} 6... exd5 {[%clk
0:02:53.7]} 7. Nf3 {[%clk 0:02:59.9]} 7... d4 {[%clk 0:02:37.8]} 8. Bg5 {[%clk
0:02:55.6]} 8... f6 {[%clk 0:02:29.8]} 9. O-O-O {[%clk 0:02:55.3]} 9... fxg5
{[%clk 0:02:24.3]} 10. Nxd4 {[%clk 0:02:54.5]} 10... Bd7 {[%clk 0:02:18]} 11.
Ndb5 {[%clk 0:02:17.5]} 11... Nf6 {[%clk 0:02:08]} 12. h4 {[%clk 0:02:08.7]}
12... g4 {[%clk 0:01:59.2]} 13. Qf4 {[%clk 0:02:07.1]} 13... Rc8 {[%clk
0:01:52.8]} 14. e4 {[%clk 0:01:59]} 14... Nb4 {[%clk 0:01:21]} 15. Kb1 {[%clk
0:01:34.3]} 15... a6 {[%clk 0:01:10.5]} 16. Nd6+ {[%clk 0:01:18.6]} 16... Bxd6
{[%clk 0:01:10.7]} 17. Rxd6 {[%clk 0:01:03.6]} 17... O-O {[%clk 0:00:53.5]} 18.
e5 {[%clk 0:00:38.2]} 18... Nfd5 {[%clk 0:00:45]} 19. Qd2 {[%clk 0:00:37.5]}
19... Bf5+ {[%clk 0:00:38]} 20. Kc1 {[%clk 0:00:18.1]} 20... Nxa2+ {[%clk
0:00:34.9]} 21. Kd1 {[%clk 0:00:18.7]} 21... Naxc3+ {[%clk 0:00:33.9]} 22. bxc3
{[%clk 0:00:19.6]} 22... Nxc3+ {[%clk 0:00:26]} 23. Ke1 {[%clk 0:00:20]} 23...
Qe7 {[%clk 0:00:22.4]} 24. Qd4 {[%clk 0:00:16.2]} 24... Nb5 {[%clk 0:00:18.2]}
25. Bc4+ {[%clk 0:00:16]} 25... Kh8 {[%clk 0:00:15.4]} 26. Qd5 {[%clk
0:00:12.4]} 26... Nxd6 {[%clk 0:00:11.9]} 27. Be2 {[%clk 0:00:12]} 27... Ne4
{[%clk 0:00:10.8]} 28. f3 {[%clk 0:00:11.2]} 28... Rc1+ {[%clk 0:00:10]} 29. Bd1
{[%clk 0:00:10]} 29... Qb4+ {[%clk 0:00:09.9]} 30. Ke2 {[%clk 0:00:09.8]} 30...
Nc3+ {[%clk 0:00:09.5]} 31. Ke3 {[%clk 0:00:08.8]} 31... Nxd5+ {[%clk
0:00:09.4]} 32. Kf2 {[%clk 0:00:09.7]} 32... Qd2+ {[%clk 0:00:09.4]} 33. Kg3
{[%clk 0:00:10.6]} 33... Rxd1 {[%clk 0:00:09.7]} 34. Rh2 {[%clk 0:00:11.1]}
34... Qf4+ {[%clk 0:00:09.5]} 35. Kf2 {[%clk 0:00:10.6]} 35... Rd2+ {[%clk
0:00:09.9]} 36. Kf1 {[%clk 0:00:10.9]} 36... Bd3+ {[%clk 0:00:09.8]} 37. Kg1
{[%clk 0:00:09.1]} 37... Qe3+ {[%clk 0:00:10]} 38. Kh1 {[%clk 0:00:09]} 38...
Rd1# {[%clk 0:00:10.5]} 0-1